[Event "*** Titled Tuesday Blitz"]
[Site "Chess.com"]
[Date "2020.04.14"]
[Round "8"]
[White "StegariuVlad"]
[Black "StockholmMissile"]
[Result "1-0"]
[WhiteElo "2585"]
[BlackElo "2409"]
[TimeControl "180+1"]
[EndTime "11:31:05 PDT"]
[Termination "StegariuVlad won on time"]

1. e4 {[%clk 0:02:51]} 1... e5 {[%clk 0:02:58.4]} 2. Nf3 {[%clk 0:02:43]} 2...
Nc6 {[%clk 0:02:58.4]} 3. Bb5 {[%clk 0:02:41.8]} 3... a6 {[%clk 0:02:58.7]} 4.
Ba4 {[%clk 0:02:39.3]} 4... Nf6 {[%clk 0:02:58.7]} 5. O-O {[%clk 0:02:37.9]}
5... Be7 {[%clk 0:02:58.7]} 6. Re1 {[%clk 0:02:37.6]} 6... b5 {[%clk 0:02:58.6]}
7. Bb3 {[%clk 0:02:37.5]} 7... d6 {[%clk 0:02:58.9]} 8. c3 {[%clk 0:02:37.1]}
8... O-O {[%clk 0:02:58.3]} 9. h3 {[%clk 0:02:36.8]} 9... Nb8 {[%clk 0:02:58]}
10. d4 {[%clk 0:02:36.6]} 10... Nbd7 {[%clk 0:02:57.9]} 11. Nbd2 {[%clk
0:02:34.8]} 11... Bb7 {[%clk 0:02:57.5]} 12. Bc2 {[%clk 0:02:31.1]} 12... Re8
{[%clk 0:02:57.5]} 13. Nf1 {[%clk 0:02:29.6]} 13... Bf8 {[%clk 0:02:57.6]} 14.
a4 {[%clk 0:02:28.5]} 14... c5 {[%clk 0:02:54.9]} 15. d5 {[%clk 0:02:24.1]}
15... c4 {[%clk 0:02:49.8]} 16. Ng3 {[%clk 0:02:17.8]} 16... g6 {[%clk 0:02:48]}
17. Be3 {[%clk 0:02:15]} 17... Qc7 {[%clk 0:02:46.5]} 18. Qd2 {[%clk 0:02:02.2]}
18... Nc5 {[%clk 0:02:42.5]} 19. Nh2 {[%clk 0:01:56.6]} 19... Reb8 {[%clk
0:02:39.6]} 20. axb5 {[%clk 0:01:53.7]} 20... axb5 {[%clk 0:02:38.4]} 21. Ng4
{[%clk 0:01:53.6]} 21... Nxg4 {[%clk 0:02:37.9]} 22. hxg4 {[%clk 0:01:53.7]}
22... Bc8 {[%clk 0:02:37.6]} 23. g5 {[%clk 0:01:51.1]} 23... Ra7 {[%clk
0:02:29.6]} 24. Rxa7 {[%clk 0:01:39.9]} 24... Qxa7 {[%clk 0:02:29.1]} 25. Bxc5
{[%clk 0:01:40]} 25... Qxc5 {[%clk 0:02:28.7]} 26. Ra1 {[%clk 0:01:38.9]} 26...
Qc7 {[%clk 0:02:26.4]} 27. Qe3 {[%clk 0:01:37.6]} 27... Be7 {[%clk 0:02:21.9]}
28. Ra7 {[%clk 0:01:35.5]} 28... Qd8 {[%clk 0:02:21.8]} 29. Qf3 {[%clk
0:01:30.1]} 29... Bd7 {[%clk 0:02:13.4]} 30. Qd1 {[%clk 0:01:07.1]} 30... Bxg5
{[%clk 0:02:08.4]} 31. Qa1 {[%clk 0:01:07.3]} 31... Kg7 {[%clk 0:02:04.2]} 32.
Qa6 {[%clk 0:01:06.2]} 32... Be7 {[%clk 0:01:54.9]} 33. Nf1 {[%clk 0:01:02.5]}
33... h5 {[%clk 0:01:53]} 34. Ne3 {[%clk 0:01:00.4]} 34... h4 {[%clk 0:01:50.6]}
35. Bd1 {[%clk 0:00:59.7]} 35... Rb6 {[%clk 0:01:37.1]} 36. Qa5 {[%clk
0:00:56.4]} 36... Rb8 {[%clk 0:01:30.8]} 37. Qa6 {[%clk 0:00:56.1]} 37... Bf8
{[%clk 0:01:21.9]} 38. Nc2 {[%clk 0:00:37.1]} 38... Be8 {[%clk 0:01:16.2]} 39.
Bg4 {[%clk 0:00:27.6]} 39... Kg8 {[%clk 0:01:08.9]} 40. Ne3 {[%clk 0:00:26.4]}
40... b4 {[%clk 0:00:49.6]} 41. Qxc4 {[%clk 0:00:25.1]} 41... bxc3 {[%clk
0:00:49.4]} 42. bxc3 {[%clk 0:00:25]} 42... Qg5 {[%clk 0:00:46.3]} 43. Ra1
{[%clk 0:00:21.3]} 43... Qf4 {[%clk 0:00:36.8]} 44. Qe2 {[%clk 0:00:20]} 44...
Bh6 {[%clk 0:00:34.5]} 45. Bf3 {[%clk 0:00:19.1]} 45... Bd7 {[%clk 0:00:25.5]}
46. Nc4 {[%clk 0:00:18.6]} 46... Qf6 {[%clk 0:00:23]} 47. Qa2 {[%clk 0:00:16.5]}
47... Bb5 {[%clk 0:00:15.7]} 48. Rb1 {[%clk 0:00:15.5]} 48... Bf4 {[%clk
0:00:06]} 49. Qa7 {[%clk 0:00:13.5]} 49... Rf8 {[%clk 0:00:03.9]} 50. Rxb5
{[%clk 0:00:11.8]} 50... h3 {[%clk 0:00:04.8]} 51. g3 {[%clk 0:00:10.2]} 51...
Bxg3 {[%clk 0:00:04.9]} 52. fxg3 {[%clk 0:00:10.2]} 52... Qxf3 {[%clk
0:00:05.4]} 53. Qf2 {[%clk 0:00:10.5]} 53... Qd1+ {[%clk 0:00:05.1]} 54. Kh2
{[%clk 0:00:09.6]} 54... f5 {[%clk 0:00:05.3]} 55. Ne3 {[%clk 0:00:06]} 55...
Qd3 {[%clk 0:00:04.5]} 56. Rb7 {[%clk 0:00:03.7]} 56... fxe4 {[%clk 0:00:04.6]}
57. Qe1 {[%clk 0:00:03.7]} 57... Rf3 {[%clk 0:00:03.9]} 58. Rb8+ {[%clk
0:00:02.5]} 58... Kg7 {[%clk 0:00:03.7]} 59. Ng4 {[%clk 0:00:02.5]} 59... e3
{[%clk 0:00:02.9]} 60. Kxh3 {[%clk 0:00:02.5]} 60... e2 {[%clk 0:00:01.6]} 61.
Rb7+ {[%clk 0:00:02.8]} 61... Kg8 {[%clk 0:00:01.4]} 62. Qg1 {[%clk 0:00:02.4]}
1-0

[Event "*** Titled Tuesday Blitz"]
[Site "Chess.com"]
[Date "2020.04.14"]
[Round "8"]
[White "jonaszmb"]
[Black "Monmoransy"]
[Result "0-1"]
[WhiteElo "2410"]
[BlackElo "2601"]
[TimeControl "180+1"]
[EndTime "11:31:07 PDT"]
[Termination "Monmoransy won by resignation"]

1. e4 {[%clk 0:03:00.9]} 1... c5 {[%clk 0:02:59.4]} 2. Nf3 {[%clk 0:03:00.5]}
2... Nc6 {[%clk 0:02:58.4]} 3. d4 {[%clk 0:02:58.6]} 3... cxd4 {[%clk
0:02:58.4]} 4. Nxd4 {[%clk 0:02:59.5]} 4... Nf6 {[%clk 0:02:58.7]} 5. Nc3 {[%clk
0:02:59]} 5... g6 {[%clk 0:02:59.3]} 6. Nxc6 {[%clk 0:02:56.6]} 6... dxc6 {[%clk
0:03:00.2]} 7. Qxd8+ {[%clk 0:02:51.2]} 7... Kxd8 {[%clk 0:03:01.1]} 8. Bf4
{[%clk 0:02:41.3]} 8... Nd7 {[%clk 0:03:00.8]} 9. O-O-O {[%clk 0:02:37.7]} 9...
Ke8 {[%clk 0:03:01.3]} 10. h4 {[%clk 0:02:21.5]} 10... h5 {[%clk 0:02:56.5]} 11.
e5 {[%clk 0:02:18.6]} 11... Bg7 {[%clk 0:02:30.4]} 12. e6 {[%clk 0:02:18.8]}
12... fxe6 {[%clk 0:02:28.4]} 13. Bd3 {[%clk 0:02:12.3]} 13... Kf7 {[%clk
0:02:27.3]} 14. Ne4 {[%clk 0:02:12.2]} 14... Bf6 {[%clk 0:02:22.1]} 15. Ng5+
{[%clk 0:01:19.6]} 15... Bxg5 {[%clk 0:02:20.5]} 16. Bxg5 {[%clk 0:01:17.3]}
16... Nf6 {[%clk 0:02:10.8]} 17. Rhe1 {[%clk 0:01:16.2]} 17... a5 {[%clk
0:01:59.4]} 18. f3 {[%clk 0:01:03.8]} 18... a4 {[%clk 0:01:58.4]} 19. a3 {[%clk
0:01:03.8]} 19... Ra5 {[%clk 0:01:54.1]} 20. Bd2 {[%clk 0:01:00.1]} 20... Rd5
{[%clk 0:01:51.1]} 21. Bc4 {[%clk 0:00:52.5]} 21... Rdd8 {[%clk 0:01:48.2]} 22.
Bc3 {[%clk 0:00:42.5]} 22... b5 {[%clk 0:01:47]} 23. Ba2 {[%clk 0:00:40.8]}
23... Rhe8 {[%clk 0:01:40.9]} 24. b3 {[%clk 0:00:37.6]} 24... Rxd1+ {[%clk
0:01:34.8]} 25. Kxd1 {[%clk 0:00:38.5]} 25... Nd5 {[%clk 0:01:31.3]} 26. Be5
{[%clk 0:00:32.7]} 26... Rd8 {[%clk 0:01:28.6]} 27. Kc1 {[%clk 0:00:30.6]} 27...
axb3 {[%clk 0:01:27.5]} 28. cxb3 {[%clk 0:00:25.9]} 28... c5 {[%clk 0:01:26.6]}
29. g4 {[%clk 0:00:16.7]} 29... Bb7 {[%clk 0:01:17.6]} 30. gxh5 {[%clk
0:00:16.9]} 30... gxh5 {[%clk 0:01:17.2]} 31. a4 {[%clk 0:00:14.5]} 31... Nb4
{[%clk 0:01:14.2]} 32. Bb1 {[%clk 0:00:11.2]} 32... bxa4 {[%clk 0:01:13.4]} 33.
bxa4 {[%clk 0:00:12.1]} 33... Nd3+ {[%clk 0:01:08.7]} 34. Bxd3 {[%clk
0:00:12.3]} 34... Rxd3 {[%clk 0:01:08.9]} 35. f4 {[%clk 0:00:12.1]} 35... Ra3
{[%clk 0:01:07.2]} 36. Rg1 {[%clk 0:00:09.9]} 36... Rxa4 {[%clk 0:01:01.6]} 37.
Rg7+ {[%clk 0:00:09.2]} 37... Ke8 {[%clk 0:01:01.2]} 38. Kd2 {[%clk 0:00:07.7]}
38... Bf3 {[%clk 0:00:57.7]} 39. Kc3 {[%clk 0:00:05.7]} 39... Bg4 {[%clk
0:00:56.8]} 40. Rh7 {[%clk 0:00:05.8]} 40... Re4 {[%clk 0:00:53.2]} 41. Rg7
{[%clk 0:00:05.7]} 41... Be2 {[%clk 0:00:51.6]} 42. Rh7 {[%clk 0:00:04]} 42...
Ra4 {[%clk 0:00:47.2]} 43. Rg7 {[%clk 0:00:04.1]} 43... Ra3+ {[%clk 0:00:42.9]}
44. Kd2 {[%clk 0:00:04.5]} 44... Bg4 {[%clk 0:00:40.4]} 45. Bb2 {[%clk
0:00:04.1]} 45... Rh3 {[%clk 0:00:38]} 46. Rg8+ {[%clk 0:00:02.1]} 46... Kd7
{[%clk 0:00:36.8]} 47. Rg7 {[%clk 0:00:03]} 47... Rh2+ {[%clk 0:00:33.3]} 48.
Kc1 {[%clk 0:00:03.4]} 48... Rxh4 {[%clk 0:00:30.6]} 49. Bf6 {[%clk 0:00:02.8]}
49... Rh1+ {[%clk 0:00:30.1]} 50. Kd2 {[%clk 0:00:03.3]} 50... Kd6 {[%clk
0:00:25.1]} 51. Bxe7+ {[%clk 0:00:03.4]} 51... Kc6 {[%clk 0:00:23.4]} 52. Rg5
{[%clk 0:00:03.6]} 52... Rh2+ {[%clk 0:00:21.7]} 53. Kc3 {[%clk 0:00:03.2]}
53... Bf5 {[%clk 0:00:21.9]} 54. Bf6 {[%clk 0:00:02.4]} 54... Kd5 {[%clk
0:00:21.2]} 55. Rg8 {[%clk 0:00:02]} 55... Rh3+ {[%clk 0:00:20.9]} 56. Kd2
{[%clk 0:00:01.9]} 56... c4 {[%clk 0:00:20.8]} 57. Rd8+ {[%clk 0:00:02.2]} 57...
Kc5 {[%clk 0:00:19.4]} 58. Be5 {[%clk 0:00:02.9]} 58... Rd3+ {[%clk 0:00:17.3]}
59. Rxd3 {[%clk 0:00:02.2]} 59... Bxd3 {[%clk 0:00:16.8]} 60. Bf6 {[%clk
0:00:03.1]} 60... Bf5 {[%clk 0:00:16.5]} 61. Ke3 {[%clk 0:00:03.4]} 61... Kb4
{[%clk 0:00:16.2]} 62. Kd2 {[%clk 0:00:03.8]} 62... Kb3 {[%clk 0:00:16.2]} 63.
Kc1 {[%clk 0:00:01.6]} 63... c3 {[%clk 0:00:16.4]} 64. Bg5 {[%clk 0:00:02.1]}
64... c2 {[%clk 0:00:16.4]} 65. Bf6 {[%clk 0:00:03]} 65... Kc4 {[%clk
0:00:16.9]} 66. Bh4 {[%clk 0:00:03.2]} 66... Kd3 {[%clk 0:00:17.3]} 67. Bg5
{[%clk 0:00:03.6]} 67... Ke3 {[%clk 0:00:17.1]} 68. Kb2 {[%clk 0:00:02.2]} 68...
Kf3 {[%clk 0:00:16.6]} 69. Kc1 {[%clk 0:00:01.9]} 69... Kg3 {[%clk 0:00:16.6]}
0-1

[Event "*** Titled Tuesday Blitz"]
[Site "Chess.com"]
[Date "2020.04.14"]
[Round "8"]
[White "Neimar24"]
[Black "Harsha_Bharathakoti"]
[Result "1/2-1/2"]
[WhiteElo "2576"]
[BlackElo "2804"]
[TimeControl "180+1"]
[EndTime "11:31:10 PDT"]
[Termination "Game drawn by agreement"]

1. d4 {[%clk 0:03:00.9]} 1... d5 {[%clk 0:02:54.7]} 2. c4 {[%clk 0:03:00.7]}
2... e6 {[%clk 0:02:53.7]} 3. Nc3 {[%clk 0:03:00.5]} 3... c6 {[%clk 0:02:54]} 4.
e4 {[%clk 0:02:59.1]} 4... dxe4 {[%clk 0:02:54.9]} 5. Nxe4 {[%clk 0:02:59.1]}
5... Bb4+ {[%clk 0:02:55.6]} 6. Nc3 {[%clk 0:02:59.6]} 6... e5 {[%clk
0:02:55.7]} 7. a3 {[%clk 0:02:48.9]} 7... Bxc3+ {[%clk 0:02:55.7]} 8. bxc3
{[%clk 0:02:48.5]} 8... Qa5 {[%clk 0:02:56.4]} 9. Bd2 {[%clk 0:02:47.1]} 9...
Nf6 {[%clk 0:02:56.9]} 10. Nf3 {[%clk 0:02:40.2]} 10... e4 {[%clk 0:02:35.3]}
11. Ne5 {[%clk 0:02:39.1]} 11... Nbd7 {[%clk 0:02:34.3]} 12. Nxd7 {[%clk
0:02:34.3]} 12... Bxd7 {[%clk 0:02:34.5]} 13. Be2 {[%clk 0:02:32.5]} 13... O-O
{[%clk 0:02:28.3]} 14. O-O {[%clk 0:02:31.9]} 14... Be6 {[%clk 0:02:26]} 15. Qc2
{[%clk 0:02:18.6]} 15... Qa6 {[%clk 0:02:08.1]} 16. Qb3 {[%clk 0:02:08.8]} 16...
Nd7 {[%clk 0:01:56.7]} 17. Rfe1 {[%clk 0:02:01.8]} 17... Nb6 {[%clk 0:01:55.2]}
18. d5 {[%clk 0:02:00.2]} 18... cxd5 {[%clk 0:01:39.9]} 19. cxd5 {[%clk
0:01:52.9]} 19... Bxd5 {[%clk 0:01:40.8]} 20. Bxa6 {[%clk 0:01:51.8]} 20... Bxb3
{[%clk 0:01:41]} 21. Bxb7 {[%clk 0:01:51.7]} 21... Rad8 {[%clk 0:01:40.1]} 22.
Bg5 {[%clk 0:01:47.2]} 22... f6 {[%clk 0:01:37.5]} 23. Be3 {[%clk 0:01:44]}
23... f5 {[%clk 0:01:03.7]} 24. Bxb6 {[%clk 0:01:33.7]} 24... axb6 {[%clk
0:01:03.7]} 25. Rab1 {[%clk 0:01:34]} 25... Bd5 {[%clk 0:00:36.3]} 26. Rxb6
{[%clk 0:01:25.4]} 26... Bxb7 {[%clk 0:00:36]} 27. Rxb7 {[%clk 0:01:25.1]} 27...
Rd3 {[%clk 0:00:36.9]} 28. g4 {[%clk 0:01:14.4]} 28... Rxc3 {[%clk 0:00:31.7]}
29. gxf5 {[%clk 0:01:13.4]} 29... Rc4 {[%clk 0:00:08.2]} 30. Rd1 {[%clk
0:01:06.6]} 30... e3 {[%clk 0:00:03.5]} 31. fxe3 {[%clk 0:00:57.5]} 31... Rg4+
{[%clk 0:00:03.6]} 32. Kf2 {[%clk 0:00:54.2]} 32... Rxf5+ {[%clk 0:00:04.5]} 33.
Ke2 {[%clk 0:00:54.6]} 33... Rg2+ {[%clk 0:00:05]} 34. Ke1 {[%clk 0:00:51.6]}
34... Rg1+ {[%clk 0:00:05.6]} 35. Ke2 {[%clk 0:00:51.8]} 35... Rg2+ {[%clk
0:00:06.1]} 36. Ke1 {[%clk 0:00:52.1]} 36... h5 {[%clk 0:00:04.5]} 37. Rdd7
{[%clk 0:00:45.2]} 37... Rc5 {[%clk 0:00:02.2]} 38. Kf1 {[%clk 0:00:44.1]} 38...
Rcc2 {[%clk 0:00:01.6]} 39. h4 {[%clk 0:00:39]} 39... Rcf2+ {[%clk 0:00:01.6]}
40. Ke1 {[%clk 0:00:39.2]} 40... Ra2 {[%clk 0:00:02.5]} 41. Kf1 {[%clk 0:00:38]}
41... Rg4 {[%clk 0:00:03.2]} 42. Ra7 {[%clk 0:00:35.1]} 42... Rh2 {[%clk
0:00:01.9]} 43. a4 {[%clk 0:00:30.7]} 43... Rh1+ {[%clk 0:00:02.5]} 44. Ke2
{[%clk 0:00:30.2]} 44... Rhxh4 {[%clk 0:00:01.9]} 45. a5 {[%clk 0:00:29.9]}
45... Rh2+ {[%clk 0:00:02.6]} 46. Kd3 {[%clk 0:00:29.5]} 46... Ra2 {[%clk
0:00:03.5]} 47. a6 {[%clk 0:00:29.4]} 47... h4 {[%clk 0:00:04.1]} 48. Ra8+
{[%clk 0:00:28.5]} 48... Kh7 {[%clk 0:00:04]} 49. a7 {[%clk 0:00:28.9]} 49... h3
{[%clk 0:00:03.8]} 50. Rb8 {[%clk 0:00:22.2]} 50... h2 {[%clk 0:00:03.2]} 51.
Rb2 {[%clk 0:00:20.9]} 51... Rg1 {[%clk 0:00:03.8]} 52. Rxh2+ {[%clk 0:00:19.5]}
52... Rxh2 {[%clk 0:00:03]} 53. a8=Q {[%clk 0:00:20]} 53... Rd1+ {[%clk
0:00:03.8]} 54. Ke4 {[%clk 0:00:20]} 54... Rxd7 {[%clk 0:00:04.7]} 55. Qc6
{[%clk 0:00:19.7]} 55... Re7+ {[%clk 0:00:05.1]} 56. Kf3 {[%clk 0:00:20]} 56...
Rh6 {[%clk 0:00:04.4]} 57. Qc2+ {[%clk 0:00:19.4]} 57... Kg8 {[%clk 0:00:04.7]}
58. Qd3 {[%clk 0:00:19.2]} 58... Kf7 {[%clk 0:00:05.6]} 59. Qd5+ {[%clk
0:00:18.9]} 59... Kf8 {[%clk 0:00:06]} 60. Qd8+ {[%clk 0:00:18.9]} 60... Re8
{[%clk 0:00:06.9]} 61. Qd5 {[%clk 0:00:19.5]} 61... Rf6+ {[%clk 0:00:07.8]} 62.
Kg2 {[%clk 0:00:19.2]} 62... Rfe6 {[%clk 0:00:08.6]} 63. Qf5+ {[%clk 0:00:19]}
63... Kg8 {[%clk 0:00:09]} 64. Kf2 {[%clk 0:00:18.8]} 64... Rxe3 {[%clk
0:00:09]} 65. Qd5+ {[%clk 0:00:19.5]} 65... R3e6 {[%clk 0:00:09.4]} 66. Qc4
{[%clk 0:00:19.6]} 66... Kf7 {[%clk 0:00:10.3]} 67. Kf3 {[%clk 0:00:19.9]} 67...
Re7 {[%clk 0:00:10.3]} 68. Kf4 {[%clk 0:00:19.4]} 68... Kf8 {[%clk 0:00:10.4]}
69. Kf5 {[%clk 0:00:19.5]} 69... Rf6+ {[%clk 0:00:10.6]} 70. Kg5 {[%clk
0:00:19.7]} 70... Re5+ {[%clk 0:00:10.9]} 71. Kh4 {[%clk 0:00:20.1]} 71... Ref5
{[%clk 0:00:11.8]} 72. Kg4 {[%clk 0:00:20.1]} 72... Rf4+ {[%clk 0:00:11.8]} 73.
Qxf4 {[%clk 0:00:19.5]} 73... Rxf4+ {[%clk 0:00:09.8]} 74. Kxf4 {[%clk
0:00:20.4]} 74... Kf7 {[%clk 0:00:09.2]} 75. Kf5 {[%clk 0:00:20.5]} 1/2-1/2

[Event "*** Titled Tuesday Blitz"]
[Site "Chess.com"]
[Date "2020.04.14"]
[Round "8"]
[White "annamaja"]
[Black "adriangschnitzer"]
[Result "0-1"]
[WhiteElo "2192"]
[BlackElo "2369"]
[TimeControl "180+1"]
[EndTime "11:31:11 PDT"]
[Termination "adriangschnitzer won by checkmate"]

1. e4 {[%clk 0:03:00.9]} 1... c5 {[%clk 0:02:58.9]} 2. Nf3 {[%clk 0:03:00.9]}
2... Nc6 {[%clk 0:02:59.3]} 3. d4 {[%clk 0:03:01]} 3... cxd4 {[%clk 0:03:00.2]}
4. Nxd4 {[%clk 0:03:01.5]} 4... g6 {[%clk 0:03:00.7]} 5. c4 {[%clk 0:03:00.9]}
5... Bg7 {[%clk 0:03:00.8]} 6. Be3 {[%clk 0:03:01]} 6... Nf6 {[%clk 0:03:00.9]}
7. Nc3 {[%clk 0:03:01.5]} 7... O-O {[%clk 0:03:00.2]} 8. Be2 {[%clk 0:03:00.7]}
8... d6 {[%clk 0:02:59.3]} 9. O-O {[%clk 0:03:00.1]} 9... Bd7 {[%clk 0:02:59.3]}
10. f3 {[%clk 0:02:52.4]} 10... a5 {[%clk 0:02:48.2]} 11. Rb1 {[%clk 0:02:32.7]}
11... Nxd4 {[%clk 0:02:45.8]} 12. Bxd4 {[%clk 0:02:32.2]} 12... Bc6 {[%clk
0:02:43.6]} 13. Qd2 {[%clk 0:02:18.9]} 13... Nd7 {[%clk 0:02:41.9]} 14. Be3
{[%clk 0:02:18.8]} 14... Nc5 {[%clk 0:02:39]} 15. b3 {[%clk 0:02:16.1]} 15... e6
{[%clk 0:02:38]} 16. a3 {[%clk 0:02:13.3]} 16... Be5 {[%clk 0:02:36.2]} 17. g3
{[%clk 0:01:33.3]} 17... Qf6 {[%clk 0:02:28.7]} 18. Na2 {[%clk 0:01:14.5]} 18...
Qh8 {[%clk 0:02:07.9]} 19. b4 {[%clk 0:01:04.3]} 19... axb4 {[%clk 0:01:54]} 20.
axb4 {[%clk 0:01:05.2]} 20... Na4 {[%clk 0:01:47.2]} 21. b5 {[%clk 0:00:59.9]}
21... Be8 {[%clk 0:01:36.5]} 22. f4 {[%clk 0:00:58.7]} 22... Nc3 {[%clk
0:01:29.9]} 23. fxe5 {[%clk 0:00:33.5]} 23... Rxa2 {[%clk 0:01:28.3]} 24. Qxc3
{[%clk 0:00:33.2]} 24... Rxe2 {[%clk 0:01:28.3]} 25. Bh6 {[%clk 0:00:33.2]}
25... Qxe5 {[%clk 0:01:23.8]} 26. Qxe5 {[%clk 0:00:28.1]} 26... dxe5 {[%clk
0:01:24.7]} 27. Rfe1 {[%clk 0:00:19.9]} 27... Rc2 {[%clk 0:01:09.1]} 28. Rbc1
{[%clk 0:00:19.7]} 28... Rb2 {[%clk 0:01:07.8]} 29. Bxf8 {[%clk 0:00:15.6]}
29... Kxf8 {[%clk 0:01:08.7]} 30. Red1 {[%clk 0:00:15.3]} 30... Ke7 {[%clk
0:01:08.6]} 31. Rd3 {[%clk 0:00:14.3]} 31... Re2 {[%clk 0:01:07.6]} 32. Ra3
{[%clk 0:00:14.2]} 32... Kd6 {[%clk 0:00:57.2]} 33. c5+ {[%clk 0:00:14]} 33...
Kc7 {[%clk 0:00:56.2]} 34. b6+ {[%clk 0:00:12.5]} 34... Kc6 {[%clk 0:00:54]} 35.
Rd3 {[%clk 0:00:09.2]} 35... Rxe4 {[%clk 0:00:50.6]} 36. Rd6+ {[%clk 0:00:08.9]}
36... Kb5 {[%clk 0:00:50.9]} 37. c6 {[%clk 0:00:06.9]} 37... Bxc6 {[%clk
0:00:41.8]} 38. Rb1+ {[%clk 0:00:07.1]} 38... Kc5 {[%clk 0:00:38.1]} 39. Rd8
{[%clk 0:00:05.9]} 39... Re2 {[%clk 0:00:35.2]} 40. Rc1+ {[%clk 0:00:05.4]}
40... Kxb6 {[%clk 0:00:34.2]} 41. Rf8 {[%clk 0:00:05.4]} 41... f5 {[%clk
0:00:31.1]} 42. h4 {[%clk 0:00:05.2]} 42... Rg2+ {[%clk 0:00:30.4]} 43. Kf1
{[%clk 0:00:05.5]} 43... Rxg3 {[%clk 0:00:31]} 44. Rf6 {[%clk 0:00:05.2]} 44...
Rh3 {[%clk 0:00:27.9]} 45. Rc2 {[%clk 0:00:03.5]} 45... Rh1+ {[%clk 0:00:25.6]}
46. Ke2 {[%clk 0:00:03.1]} 46... Rh2+ {[%clk 0:00:25.7]} 47. Kd1 {[%clk
0:00:02]} 47... Ba4 {[%clk 0:00:25.5]} 48. Rxe6+ {[%clk 0:00:02]} 48... Ka7
{[%clk 0:00:25.8]} 49. Rxe5 {[%clk 0:00:01.3]} 49... Bxc2+ {[%clk 0:00:24.3]}
50. Kc1 {[%clk 0:00:01.6]} 50... Be4 {[%clk 0:00:25.2]} 51. Ra5+ {[%clk
0:00:01.5]} 51... Kb6 {[%clk 0:00:24.5]} 52. Re5 {[%clk 0:00:02.4]} 52... Rxh4
{[%clk 0:00:24.4]} 53. Re8 {[%clk 0:00:03.3]} 53... Rh1+ {[%clk 0:00:24.6]} 54.
Kb2 {[%clk 0:00:02.3]} 54... Rb1+ {[%clk 0:00:24.6]} 55. Ka3 {[%clk 0:00:02.7]}
55... Rb5 {[%clk 0:00:24.6]} 56. Re6+ {[%clk 0:00:02.6]} 56... Ka5 {[%clk
0:00:23.3]} 57. Re7 {[%clk 0:00:02.6]} 57... h5 {[%clk 0:00:21.6]} 58. Rh7
{[%clk 0:00:02.1]} 58... Rd5 {[%clk 0:00:17.3]} 59. Rg7 {[%clk 0:00:02.4]} 59...
Rd3+ {[%clk 0:00:17.1]} 60. Kb2 {[%clk 0:00:02.2]} 60... f4 {[%clk 0:00:17.4]}
61. Rf7 {[%clk 0:00:01.6]} 61... f3 {[%clk 0:00:17.4]} 62. Re7 {[%clk
0:00:02.2]} 62... Rd2+ {[%clk 0:00:17.1]} 63. Ka3 {[%clk 0:00:01.6]} 63... f2
{[%clk 0:00:16.6]} 64. Re5+ {[%clk 0:00:02.1]} 64... Rd5 {[%clk 0:00:15.4]} 65.
Rxe4 {[%clk 0:00:02.3]} 65... f1=Q {[%clk 0:00:15.1]} 66. Ra4+ {[%clk
0:00:01.9]} 66... Kb6 {[%clk 0:00:14.7]} 67. Rb4+ {[%clk 0:00:02.8]} 67... Rb5
{[%clk 0:00:14.6]} 68. Rxb5+ {[%clk 0:00:02]} 68... Qxb5 {[%clk 0:00:14.8]} 69.
Ka2 {[%clk 0:00:01.9]} 69... Kc5 {[%clk 0:00:15.7]} 70. Ka1 {[%clk 0:00:02.5]}
70... Kc4 {[%clk 0:00:16.6]} 71. Ka2 {[%clk 0:00:02.9]} 71... Kc3 {[%clk
0:00:17.5]} 72. Ka1 {[%clk 0:00:03.8]} 72... Qb2# {[%clk 0:00:17.3]} 0-1